Cogmind - Beta 16.1 @@@ ROGUE MODE // 2026.04.18 @ 07:05:35 Player: beans Result: Destroyed self via exploding Fusion Modulator Performance ------------- Evolutions (6) 3000 Regions Visited (19) 3800 Robots Destroyed (118) 590 Value Destroyed (3758) 3758 Prototype IDs (26) 520 Alien Tech Used (1) 200 Bonus (3987) 3987 TOTAL SCORE: 15855 Bonus ------- High Alert Combat Kills 17 Follower Combat Kills 1769 Registered with UFD 300 Met Optimus in HQ 500 Met Imprinter 300 Met Warlord at Base 500 MAIN.C Attacked Warlord 500 Warlord Defense Kills 294 Friendly Fire -193 Cogmind --------- Core Integrity 0/1150 Matter 50/300 Energy 79/100 System Corruption 3% Temperature Cool (12) Movement Core (100) Ox1 Location -4/Factory Parts ------- > --- POWER (2) -------- (None) > --- PROPULSION (6) --- (None) > --- UTILITY (8) ------ Experimental Terrain Scan Processor Experimental Core Analyzer > --- WEAPON (3) ------- Compact Linear Accelerator > --- INVENTORY (5) ---- Electron Diverter Advanced Cloaking Device Hardcell Cannon CPS Tube (2) Peak State ------------ > --- POWER ------------ Light Quantum Reactor > --- PROPULSION ------- Electron Diverter Impulse Thruster Array Impulse Thruster Array > --- UTILITY ---------- Advanced Cooling System Experimental Terrain Scanner Makeshift Terrain Scan Processor Experimental Terrain Scan Processor Experimental Core Analyzer Advanced Cloaking Device Centrium Light Armor Plating > --- WEAPON ----------- Compact Linear Accelerator Compact Linear Accelerator > --- INVENTORY -------- Advanced Reaction Control System Enhanced Gauss Cannon CPS Tube [Rating: 126] Favorites ----------- Power Cooled Ion Engine Engine Cooled Ion Engine Power Core Light Fission Core Reactor Light Quantum Reactor Propulsion Improved Aluminum Leg Treads Light Treads Leg Improved Aluminum Leg Hover Unit Gravmag Array Flight Unit Nuclear Pulse Thruster Utility Experimental Targeting Computer Device Experimental Terrain Scanner Storage Experimental Energy Well Processor Experimental Targeting Computer Hackware Hacking Suite Protection Improved Light Armor Plating Weapon Heavy Machine Gun Energy Gun Heavy Particle Gun Energy Cannon Advanced Plasma Cannon Ballistic Gun Heavy Machine Gun Ballistic Cannon Enhanced Gauss Cannon Launcher Guided EMP Blaster Special Weapon Plasma Cutter Slashing Weapon Power Sword Piercing Weapon Spear Build | -11 -10 -10 -9 -9 -9 -9 -6 -6 -6 -6 -5 -5 -5 -5 -5 -5 -5 -4 -4 ------- Run | Yrd Mat Min Mat Sto Rec Scr Fac Low Low Zio Pro Fac Was Fac Upp Upp War Pro Fac Slots Evolved 12 | . . . 2 . . . 6 . . . . 2 . . . . . . 2 Power 1 | . . . . . . . 1 . . . . . . . . . . . . Propulsion 4 | . . . 2 . . . 2 . . . . . . . . . . . . Utility 6 | . . . . . . . 2 . . . . 2 . . . . . . 2 Weapon 1 | . . . . . . . 1 . . . . . . . . . . . . Parts Attached 101 | 5 1 . 14 17 . 4 6 1 2 2 2 13 2 10 2 3 12 1 4 Power 12 | 1 . . 2 3 . . . . 1 . . 2 . . . . 3 . . Engine 8 | 1 . . 2 3 . . . . 1 . . 1 . . . . . . . Core 2 | . . . . . . . . . . . . 1 . . . . 1 . . Reactor 2 | . . . . . . . . . . . . . . . . . 2 . . Propulsion 26 | 2 . . 4 4 . . 2 . . . . 3 1 5 . . 3 . 2 Treads 3 | . . . 3 . . . . . . . . . . . . . . . . Leg 7 | 2 . . 1 4 . . . . . . . . . . . . . . . Wheel . | . . . . . . . . . . . . . . . . . . . . Hover 3 | . . . . . . . 2 . . . . 1 . . . . . . . Flight 13 | . . . . . . . . . . . . 2 1 5 . . 3 . 2 Utility 27 | . 1 . 2 4 . 1 2 . . 1 1 4 . 1 2 2 5 . 1 Device 14 | . . . 1 3 . 1 1 . . . 1 1 . . 2 2 2 . . Storage 1 | . . . . . . . . . . . . . . . . . 1 . . Processor 9 | . . . . 1 . . 1 . . 1 . 3 . 1 . . 1 . 1 Hackware 1 | . 1 . . . . . . . . . . . . . . . . . . Protection 2 | . . . 1 . . . . . . . . . . . . . 1 . . Artifact . | . . . . . . . . . . . . . . . . . . . . Weapon 36 | 2 . . 6 6 . 3 2 1 1 1 1 4 1 4 . 1 1 1 1 Energy Gun 8 | . . . 3 1 . . . . . . 1 1 . 1 . 1 . . . Energy Cannon 1 | . . . . . . . . . . . . . . 1 . . . . . Ballistic Gun 14 | 2 . . 2 3 . 2 . 1 1 . . 2 . . . . . . 1 Ballistic Cannon 5 | . . . . . . . 1 . . . . . . 2 . . 1 1 . Launcher 2 | . . . 1 1 . . . . . . . . . . . . . . . Special Weapon 4 | . . . . 1 . 1 1 . . 1 . . . . . . . . . Impact Weapon . | . . . . . . . . . . . . . . . . . . . . Slashing Weapon 1 | . . . . . . . . . . . . . 1 . . . . . . Piercing Weapon 1 | . . . . . . . . . . . . 1 . . . . . . . Special Melee Weapon . | . . . . . . . . . . . . . . . . . . . . Unidentified Prototypes 20 | . . . 2 6 . . 1 . . . . 1 . 2 . . 8 . . Parts Lost 44 | . 1 . 8 2 . . . . . . 3 10 . 4 . . 1 . 15 Power 6 | . 1 . 1 . . . . . . . 1 2 . . . . . . 1 Propulsion 14 | . . . 2 2 . . . . . . . 3 . 2 . . . . 5 Utility 11 | . . . 1 . . . . . . . 1 1 . 1 . . 1 . 6 Weapon 13 | . . . 4 . . . . . . . 1 4 . 1 . . . . 3 Highest Loss Streak 10 | . 1 . 2 1 . . . . . . 3 8 . 2 . . 1 . 10 To Critical Strikes 1 | . . . . . . . . . . . . 1 . . . . . . . Average Backups 4 | . . . 4 4 4 4 4 4 4 4 5 4 4 5 5 5 5 5 4 Power . | . . . . . . . . . . . . . . . . . . . . Propulsion . | . . . 1 . . . . . . . . . . . . . . . . Utility 1 | . . . . . 2 2 2 1 1 1 1 1 . 1 1 2 2 3 2 Weapon . | . . . 2 2 1 . . . . . 1 . . 1 . . . 1 1 Tool/Special . | . . . . . . . . . . . . . . . . . . . . Unused Backups 4 | . . . . 1 . 1 . . . 1 . . . . 1 . . . . Power . | . . . . . . . . . . . . . . . . . . . . Propulsion 1 | . . . . 1 . . . . . . . . . . . . . . . Utility 3 | . . . . . . 1 . . . 1 . . . . 1 . . . . Weapon . | . . . . . . . . . . . . . . . . . . . . Tool/Special . | . . . . . . . . . . . . . . . . . . . . Average Slot Usage (%) 75 | . 77 71 57 76 79 89 56 61 66 73 71 47 57 92 94 94 92 82 58 Engine 8 | . 9 . 5 11 11 11 6 6 6 13 11 1 2 11 11 11 9 . . Treads 3 | . . . 9 19 . . . . . . . . . . . . . . . Leg 10 | . 28 28 8 8 44 44 9 . . . . . . . . . . . . Hover 3 | . . . . . . . 8 13 13 13 13 4 . . . . . . . Flight 7 | . . . . . . . . . . . . 5 12 30 29 29 28 23 15 Device 8 | . . . 10 13 11 11 6 12 13 10 5 2 4 5 5 5 5 9 8 Processor 15 | . . . . 7 11 11 9 13 13 15 20 22 29 27 29 28 27 23 16 Energy Gun 2 | . . . 13 6 . . . . . . . 1 . 1 . . . 5 2 Ballistic Gun 7 | . 28 28 5 5 1 6 11 15 20 19 18 6 4 2 . . . . 1 Ballistic Cannon 2 | . . . . . . . . . . . . . . 5 11 11 11 11 7 Special Weapon 1 | . . . . 1 . 6 2 . . . . . . . . . 4 . . Peak Build Rating 126 | 5 8 7 17 27 32 36 55 63 67 68 66 67 61 86 86 93 119 123 126 Average Rating 52 | 3 7 7 13 20 21 29 44 58 63 66 64 42 48 75 85 87 93 122 101 On Entrance 51 | . 5 7 7 17 24 21 36 49 63 67 66 62 40 61 86 82 93 119 123 Avg Prop Armor Cover (%) 2 | . . . . . . . . . . . . . . 2 . . . . . Naked Turns . | . . . . . . . . . . . . . . . . . . . . Heaviest Build 57 | 9 9 4 18 19 12 18 23 24 34 34 33 30 13 26 26 32 57 41 39 Greatest Support 60 | 20 20 20 60 60 52 52 52 40 40 40 40 51 14 37 37 37 46 46 46 Greatest Overweight (x) 5 | . . . 5 . . . 1 . . . . 3 . . . . 1 . 3 Average Overweight (x) . | . . . . . . . . . . . . . . . . . . . . Largest Inventory Capacity 5 | 5 5 5 5 5 5 5 5 5 5 5 5 5 5 5 5 5 5 5 5 Average Capacity 5 | 5 5 5 5 5 5 5 5 5 5 5 5 5 5 5 5 5 5 5 5 Most Carried 5 | 4 1 . 5 5 5 5 5 5 5 5 5 5 5 5 5 5 5 5 5 Average Carried 4 | . . . 4 4 4 4 4 4 4 4 5 4 4 5 4 5 5 5 4 Final Capacity 5 | 5 5 5 5 5 5 5 5 5 5 5 5 5 5 5 5 5 5 5 5 Final Carried 5 | . . . 5 5 5 5 5 4 4 5 5 5 5 5 5 5 5 5 4 Class Distribution -------------------- 24% | Commander-Mutant 17% | Commander-Scout 13% | Mutant 9% | Scavenger-Scout 8% | Scavenger-Sprinter 7% | Scavenger-Mutant 6% | Scout 6% | Commander-Sprinter Dominant Class ---------------- Mutant | -10/Materials Mutant | -10/Mines Mutant | -9/Materials Commander-Mutant | -9/Storage Commander-Mutant | -9/Recycling Commander-Mutant | -9/Scraptown Commander-Mutant | -6/Factory Commander-Scout | -6/Lower Caves Commander-Scout | -6/Lower Caves Commander-Scout | -6/Zion Commander-Scout | -5/Proximity Caves Sprinter | -5/Factory Scout | -5/Waste Scavenger-Scout | -5/Factory Scavenger-Scout | -5/Upper Caves Scavenger-Scout | -5/Upper Caves Commander-Sprinter | -5/Warlord Scavenger-Sprinter | -4/Proximity Caves Scavenger-Sprinter | -4/Factory Resources | -11 -10 -10 -9 -9 -9 -9 -6 -6 -6 -6 -5 -5 -5 -5 -5 -5 -5 -4 -4 ----------- Run | Yrd Mat Min Mat Sto Rec Scr Fac Low Low Zio Pro Fac Was Fac Upp Upp War Pro Fac Matter Collected 4084 | 200 93 . 548 353 38 20 . 161 23 . 337 269 322 271 378 . 328 401 342 Remotely . | . . . . . . . . . . . . . . . . . . . . Salvage Created 4964 | . 186 . 1180 1330 59 . . 96 . . 305 307 629 153 181 . 38 135 365 Parts 275 | . 12 . 90 84 5 . . 5 . . 13 16 9 10 4 . 2 7 18 Haulers Intercepted 6 | . . . 2 3 . . . . . . . 1 . . . . . . . Recyclers Shooed 5 | . 1 . 1 . 1 . . . . . . 1 . . . . . . 1 Parts Field Recycled . | . . . . . . . . . . . . . . . . . . . . Retrieved Matter . | . . . . . . . . . . . . . . . . . . . . Parts Self-Destructed 54 | . . . . . . . . 3 . . 17 . . . 12 . . 22 . Prevented 8 | . . . . . . . . . . . 8 . . . . . . . . Parts Restored . | . . . . . . . . . . . . . . . . . . . . Kills | -11 -10 -10 -9 -9 -9 -9 -6 -6 -6 -6 -5 -5 -5 -5 -5 -5 -5 -4 -4 ------- Run | Yrd Mat Min Mat Sto Rec Scr Fac Low Low Zio Pro Fac Was Fac Upp Upp War Pro Fac Combat Hostiles Destroyed 81 | . 4 . 19 21 1 . . 1 . . 8 4 2 4 3 . 2 2 10 Guns 56 | . 4 . 18 13 . . . 1 . . 8 3 2 2 . . . . 5 Cannons 15 | . . . . . . . . . . . . 1 . 2 3 . 2 2 5 AOE 9 | . . . . 8 1 . . . . . . . . . . . . . . Classes Destroyed 17 | . 3 . 7 . . . . . . . 2 . 1 2 1 . 1 . . Worker 8 | . . . 6 2 . . . . . . . . . . . . . . . Builder 3 | . . . 2 1 . . . . . . . . . . . . . . . Tunneler 1 | . . . . . . . . . . . . . . 1 . . . . . Hauler 6 | . . . 2 3 . . . . . . . 1 . . . . . . . Recycler 6 | . . . 3 2 . . . . . . . 1 . . . . . . . Operator 5 | . 1 . . 3 . . . . . . . 1 . . . . . . . Watcher 7 | . 1 . 2 2 . . . . . . . 1 . . . . . . 1 Swarmer 25 | . . . 7 3 . . . . . . 4 4 . 2 . . 1 . 4 Grunt 27 | . 4 . 7 10 . . . 1 . . 2 . . . 2 . . 1 . Brawler 1 | . . . 1 . . . . . . . . . . . . . . . . Duelist 1 | . . . . . . . . . . . 1 . . . . . . . . Sentry 16 | . . . 4 8 1 . . 1 . . . . . 1 . . . . 1 Hunter 4 | . . . . . . . . . . . 1 . . . . . . 1 2 Programmer 4 | . . . . . . . . . . . . . . 1 . . . . 3 Behemoth 1 | . . . . . . . . . . . . . . . 1 . . . . Compactor 2 | . . . . . . . . . . . . . 2 . . . . . . Executioner 1 | . . . . . . . . . . . . . . . . . 1 . . Best Kill Streak 12 | . 2 . 12 7 1 . . 1 . . 4 1 1 2 1 . 2 1 4 Combat Bots Only 6 | . 2 . 6 4 1 . . 1 . . 4 1 1 2 1 . 2 1 4 Max Kills in Single Turn 3 | . 1 . 1 3 1 . . 1 . . 1 1 1 2 1 . 1 1 1 Gunslinging 1 | . . . . 1 . . . . . . . . . . . . . . . Exploded 3 | . . . . 3 1 . . . . . . . . . . . . . . Melee . | . . . . . . . . . . . . . . . . . . . . Uniques/NPCs Destroyed . | . . . . . . . . . . . . . . . . . . . . Combat | -11 -10 -10 -9 -9 -9 -9 -6 -6 -6 -6 -5 -5 -5 -5 -5 -5 -5 -4 -4 -------- Run | Yrd Mat Min Mat Sto Rec Scr Fac Low Low Zio Pro Fac Was Fac Upp Upp War Pro Fac Hostile Shots Fired 682 | . 38 . 139 45 . . . 9 . . 72 78 . 8 15 . 7 37 234 Missed 244 | . 11 . 40 16 . . . 5 . . 23 27 . . 7 . 3 13 99 Hits 438 | . 27 . 99 29 . . . 4 . . 49 51 . 8 8 . 4 24 135 Melee 5 | . . . 1 . . . . . . . 1 2 . . . . 1 . . Projectile 433 | . 27 . 98 29 . . . 4 . . 48 49 . 8 8 . 3 24 135 Critical Strikes 13 | . 1 . 2 2 . . . . . . . 4 . . 1 . . . 3 Damage Taken 7354 | . 384 . 1059 403 . . . 82 . . 975 929 . 307 193 . 107 228 2687 Core 2358 | . 90 . 235 50 . . . 48 . . 175 296 . 116 74 . . 50 1224 Absorbed by Shields 239 | . . . . . . . . . . . . . . . . . 41 198 . Regen/Repaired (Parts) 271 | . . . . . . . . . . 163 . . . 9 1 19 48 31 . Core Remaining (%) 62 | 100 . 64 . . . 28 . . . . 73 . . . . . . 46 . Volleys Fired 442 | . 26 . 82 60 2 . . 5 . . 26 68 43 16 22 2 9 18 63 Largest 3 | . 2 . 2 2 1 . . 3 . . 3 3 1 2 2 2 2 3 3 Hottest 204 | . 40 . 110 110 . . . 88 . . 88 130 33 98 95 95 95 204 204 Shots Fired 725 | . 52 . 131 98 2 . . 11 . . 73 81 43 29 41 4 16 41 103 Gun 527 | . 52 . 131 89 . . . 10 . . 73 73 43 3 . . . 4 49 Cannon 178 | . . . . . . . . . . . . . . 26 41 4 16 37 54 Launcher 10 | . . . . 8 2 . . . . . . . . . . . . . . Special 10 | . . . . 1 . . . 1 . . . 8 . . . . . . . Kinetic 555 | . 52 . 80 21 . . . 10 . . 73 66 43 28 41 4 16 37 84 Thermal 159 | . . . 51 69 . . . . . . . 15 . 1 . . . 4 19 Explosive . | . . . . . . . . . . . . . . . . . . . . Electromagnetic 10 | . . . . 8 2 . . . . . . . . . . . . . . Robot Hit Streak 19 | . 9 . 12 17 . . . 19 . . 11 13 14 6 5 . 6 8 5 Robot Miss Streak 9 | . 2 . 6 3 . . . 5 . . 3 3 2 4 4 . 3 3 9 Penetration Max 1 | . . . . . . . . . . . 1 . 1 1 . . 1 . 1 Secondary Targets 8 | . . . 3 1 . . . . . . 4 . . . . . . . . Max Gunslinging Chain 1 | . . . 1 1 . . . . . . 1 . . . . . . . . Shots Hit Robots 413 | . 37 . 81 62 . . . 8 . . 51 44 34 12 19 . 5 19 41 Core Hits 204 | . 13 . 44 46 3 . . 6 . . 22 15 9 9 6 . 6 8 17 Critical Kills 3 | . . . . . . . . . . . . . 1 1 . . . . 1 Critical Parts Destroyed 10 | . 1 . . . . . . . . . . . . 2 5 . 1 . 1 Critical Strikes 30 | . 1 . 1 3 . . . . . . . 2 3 5 6 . 3 1 5 Burn 6 | . . . 1 3 . . . . . . . 2 . . . . . . . Destroy 16 | . 1 . . . . . . . . . . . 3 3 5 . 2 . 2 Blast 8 | . . . . . . . . . . . . . . 2 1 . 1 1 3 Melee Attacks 5 | . . . . . . . . . . . . . . 5 . . . . . Impact . | . . . . . . . . . . . . . . . . . . . . Slashing 5 | . . . . . . . . . . . . . . 5 . . . . . Piercing . | . . . . . . . . . . . . . . . . . . . . Sneak Attacks 1 | . . . . . . . . . . . . . . 1 . . . . . Combat Hostiles . | . . . . . . . . . . . . . . . . . . . . Follow-up Attacks . | . . . . . . . . . . . . . . . . . . . . Damage Inflicted 11211 | . 485 . 1375 2182 142 . . 138 . . 1216 931 974 598 617 . 274 743 1536 Guns 7006 | . 485 . 1375 1159 . . . 138 . . 1216 821 974 113 . . . 27 698 Cannons 2749 | . . . . . . . . . . . . . . 352 617 . 274 716 790 Explosions 1165 | . . . . 1023 142 . . . . . . . . . . . . . . Melee 133 | . . . . . . . . . . . . . . 133 . . . . . Ramming 50 | . . . . . . . . . . . . 2 . . . . . . 48 Kinetic 7951 | . 485 . 773 262 . . . 138 . . 1216 723 974 465 617 . 274 716 1308 Thermal 2109 | . . . 602 1094 . . . . . . . 206 . . . . . 27 180 Explosive . | . . . . . . . . . . . . . . . . . . . . Electromagnetic 968 | . . . . 826 142 . . . . . . . . . . . . . . Impact . | . . . . . . . . . . . . . . . . . . . . Slashing 133 | . . . . . . . . . . . . . . 133 . . . . . Piercing . | . . . . . . . . . . . . . . . . . . . . Highest Corruption 5 | . 2 2 . 1 1 . . . . . . 1 1 2 2 2 5 5 3 Average Corruption 1 | . 2 2 . 1 1 . . . . . . 1 1 1 2 2 4 5 2 Corruption Purged . | . . . . . . . . . . . . . . . . . . . . Corruption Blocked . | . . . . . . . . . . . . . . . . . . . . Effects 53 | . . . . 3 4 . . . . . . 4 7 6 10 4 3 9 3 Message Errors 14 | . . . . . 1 . . . . . . 1 1 2 3 2 2 2 . Matter Fused 9 | . . . . . 1 . . . . . . . . 2 2 1 1 2 . Heat Flow Errors 7 | . . . . . . . . . . . . . 3 1 1 . . 2 . Energy Discharges 5 | . . . . 1 1 . . . . . . . 1 1 . . . . 1 Parts Rejected 1 | . . . . . . . . . . . . . 1 . . . . . . Data Loss (minor) 8 | . . . . 1 . . . . . . . 2 . . 2 1 . 2 . Data Loss (major) 4 | . . . . . 1 . . . . . . . 1 . . . . . 2 Misfires 4 | . . . . 1 . . . . . . . 1 . . 1 . . 1 . Weapon Failures 1 | . . . . . . . . . . . . . . . 1 . . . . Overload Shots . | . . . . . . . . . . . . . . . . . . . . Overflow Damage 103 | . . . . 15 . . . . . . . . . 16 . . . 46 26 Projectiles 88 | . . . . . . . . . . . . . . 16 . . . 46 26 Explosions 15 | . . . . 15 . . . . . . . . . . . . . . . Melee . | . . . . . . . . . . . . . . . . . . . . Knockbacks 25 | . . . . . . . . . . . . . . 3 7 . 1 5 9 Impact 3 | . . . . . . . . . . . . . . . . . . . 3 Kinetic 19 | . . . . . . . . . . . . . . 2 6 . 1 4 6 Secondary 3 | . . . . . . . . . . . . . . 1 1 . . 1 . Self-Inflicted Damage 138 | . . . . 31 . . . . . . . 1 . . . . . . 106 Shots 3 | . . . . 2 . . . . . . . . . . . . . . 1 Rammed 11 | . . . . . . . . . . . . 1 . . . . . . 10 Targets Rammed 11 | . . . . . . . . . . . . 1 . . . . . . 10 Kicked . | . . . . . . . . . . . . . . . . . . . . Crushed . | . . . . . . . . . . . . . . . . . . . . Highest Temperature 364 | . 9 . 237 364 . . . 11 . . 337 120 258 165 311 42 40 231 164 Average Temperature 66 | . 3 . 53 72 . . . 7 . . 96 33 105 54 88 23 16 82 62 Received Heat Transfer 1479 | . 234 . 294 159 . . . 42 . . 348 48 . 27 99 . 9 24 195 Effects 3 | . . . . . . . . . . . 3 . . . . . . . . Interference 3 | . . . . . . . . . . . 3 . . . . . . . . Siege Activations . | . . . . . . . . . . . . . . . . . . . . Martial Activations . | . . . . . . . . . . . . . . . . . . . . Shielding Activations . | . . . . . . . . . . . . . . . . . . . . Robots Disrupted 1 | . . . . . . . . . . . . 1 . . . . . . . Combat Hostiles 1 | . . . . . . . . . . . . 1 . . . . . . . Robots Corrupted . | . . . . . . . . . . . . . . . . . . . . Combat Hostiles . | . . . . . . . . . . . . . . . . . . . . Parts Fried 3 | . . . . 3 . . . . . . . . . . . . . . . Impact Corruptions . | . . . . . . . . . . . . . . . . . . . . Robots Melted 2 | . . . 1 1 . . . . . . . . . . . . . . . Combat Hostiles 1 | . . . 1 . . . . . . . . . . . . . . . . Parts Melted 8 | . . . 3 2 . . . . . . 1 2 . . . . . . . Heat Transferred 4886 | . . . 1221 2261 . . . . . . . 1145 . . . . . 37 222 Parts Sabotaged . | . . . . . . . . . . . . . . . . . . . . Parts Stolen . | . . . . . . . . . . . . . . . . . . . . Parts Stripped . | . . . . . . . . . . . . . . . . . . . . Power Chain Reactions 6 | . . . . 6 . . . . . . . . . . . . . . . Alert | -11 -10 -10 -9 -9 -9 -9 -6 -6 -6 -6 -5 -5 -5 -5 -5 -5 -5 -4 -4 ------- Run | Yrd Mat Min Mat Sto Rec Scr Fac Low Low Zio Pro Fac Was Fac Upp Upp War Pro Fac Maximum Alert Level 2 | . . . 1 2 . . . . . . . . . 2 . . . . 1 Low Security (%) 67 | 100 100 100 50 36 100 . 100 . . . . 100 100 44 . . . . 79 Level 1 24 | . . . 49 40 . . . . . . . . . 35 . . . . 20 Level 2 7 | . . . . 22 . . . . . . . . . 20 . . . . . Level 3 . | . . . . . . . . . . . . . . . . . . . . Level 4 . | . . . . . . . . . . . . . . . . . . . . Level 5 . | . . . . . . . . . . . . . . . . . . . . High Security . | . . . . . . . . . . . . . . . . . . . . Max Security . | . . . . . . . . . . . . . . . . . . . . Peak Influence 500 | . 61 14 256 455 162 . . . . . . 60 54 500 . . . . 342 Initial 162 | . . 14 . 83 162 . . . . . . 51 . . . . . . 52 Average 141 | . 23 7 141 263 62 . . . . . . 20 6 238 . . . . 131 Influence Increases 5367 | . 113 . 570 969 72 . . 26 . . 675 246 64 816 408 . 275 224 909 Destroy 0b10 Robot/C 2480 | . 80 . 380 480 40 . . 20 . . 360 80 . 280 200 . 180 160 220 Destroy 0b10 Robot/NC 195 | . 10 . 75 65 . . . . . . . 20 . 10 5 . . . 10 Destroy Leader 496 | . 22 . 68 180 . . . . . . 50 14 . 50 30 . . 20 62 Allied During Kill 932 | . . . . 63 16 . . 6 . . 205 . . 329 173 . 95 44 1 Disable Machine 285 | . . . 45 120 15 . . . . . . 15 . 45 . . . . 45 Destroy Structure 289 | . 1 . 2 31 1 . . . . . . 12 64 102 . . . . 76 Partial Spotted 45 | . . . . . . . . . . . . . . . . . . . 45 Lose Combat Pursuer 645 | . . . . 30 . . . . . . 60 105 . . . . . . 450 Influence Decreases 5010 | . 75 38 372 749 490 . . 24 2 . 592 327 66 350 415 294 412 168 636 Entered New Map 917 | . . 24 . 115 256 . . . 2 . . 32 2 . 173 88 165 28 32 Time Decay 3021 | . 65 14 292 574 234 . . 24 . . 360 225 64 210 222 206 97 140 294 Search Patrol Dispatched 100 | . . . . . . . . . . . . . . . . . . . 100 Lost Part 410 | . 10 . 80 20 . . . . . . 30 70 . 40 . . 10 . 150 Lost Ally 562 | . . . . 40 . . . . . . 202 . . 100 20 . 140 . 60 Squads Dispatched 23 | . . . . 4 . . . . . . . 4 . 3 . . . . 12 Investigation 2 | . . . . 1 . . . . . . . . . . . . . . 1 Extermination 5 | . . . . . . . . . . . . 2 . 1 . . . . 2 Reinforcement 12 | . . . . 3 . . . . . . . 1 . 2 . . . . 6 Assault . | . . . . . . . . . . . . . . . . . . . . Garrison 4 | . . . . . . . . . . . . 1 . . . . . . 3 Intercept . | . . . . . . . . . . . . . . . . . . . . Searches Triggered 1 | . . . . . . . . . . . . . . . . . . . 1 Construction Impeded 1 | . . . . . . . . . . . . . . . . . . . 1 Haulers Reinforced 2 | . . . . . . . . . . . . 1 . . . . . . 1 Active Scanning Responses . | . . . . . . . . . . . . . . . . . . . . Cargo Convoy Interrupts . | . . . . . . . . . . . . . . . . . . . . Stealth | -11 -10 -10 -9 -9 -9 -9 -6 -6 -6 -6 -5 -5 -5 -5 -5 -5 -5 -4 -4 --------- Run | Yrd Mat Min Mat Sto Rec Scr Fac Low Low Zio Pro Fac Was Fac Upp Upp War Pro Fac Distress Signals 12 | . . . 4 3 . . . . . . . . . . . . . . 5 Communications Jammed . | . . . . . . . . . . . . . . . . . . . . Distress Signals . | . . . . . . . . . . . . . . . . . . . . Times Spotted 252 | . 6 . 32 27 1 . 1 2 . . 21 16 10 13 10 . 50 8 55 Peak Tracking Total 19 | . 2 . 7 4 1 . 1 1 . . 8 9 5 5 4 . 14 4 19 Tactical Retreats 21 | . . . . 2 . . . . . . 2 5 2 . . . . . 10 Traps | -11 -10 -10 -9 -9 -9 -9 -6 -6 -6 -6 -5 -5 -5 -5 -5 -5 -5 -4 -4 ------- Run | Yrd Mat Min Mat Sto Rec Scr Fac Low Low Zio Pro Fac Was Fac Upp Upp War Pro Fac Traps Triggered 4 | . 1 . . 1 . . . . . . . 2 . . . . . . . Indirectly . | . . . . . . . . . . . . . . . . . . . . Trap Hack Attempts . | . . . . . . . . . . . . . . . . . . . . Triggered . | . . . . . . . . . . . . . . . . . . . . Disarmed . | . . . . . . . . . . . . . . . . . . . . Reprogrammed . | . . . . . . . . . . . . . . . . . . . . Reused . | . . . . . . . . . . . . . . . . . . . . Traps Extracted . | . . . . . . . . . . . . . . . . . . . . Installed . | . . . . . . . . . . . . . . . . . . . . Triggered . | . . . . . . . . . . . . . . . . . . . . Machines | -11 -10 -10 -9 -9 -9 -9 -6 -6 -6 -6 -5 -5 -5 -5 -5 -5 -5 -4 -4 ---------- Run | Yrd Mat Min Mat Sto Rec Scr Fac Low Low Zio Pro Fac Was Fac Upp Upp War Pro Fac Machines Disabled 21 | . . . 3 8 1 . . . . . . 1 . 3 . 1 1 . 3 Max in Single Turn 1 | . . . 1 1 1 . . . . . . 1 . 1 . 1 1 . 1 Machines Repaired . | . . . . . . . . . . . . . . . . . . . . Machines Dismantled 7 | . . . . 6 . . . . . . . . . . . . 1 . . Machines Sabotaged . | . . . . . . . . . . . . . . . . . . . . Overloaded Fab Kills . | . . . . . . . . . . . . . . . . . . . . Hacking | -11 -10 -10 -9 -9 -9 -9 -6 -6 -6 -6 -5 -5 -5 -5 -5 -5 -5 -4 -4 --------- Run | Yrd Mat Min Mat Sto Rec Scr Fac Low Low Zio Pro Fac Was Fac Upp Upp War Pro Fac Machines Accessed 19 | . . . . . 4 . 1 . . . . 1 . . . 2 10 . 1 Terminals . | . . . . . . . . . . . . . . . . . . . . Fabricators 1 | . . . . . . . . . . . . 1 . . . . . . . Repair Stations . | . . . . . . . . . . . . . . . . . . . . Recycling Units 4 | . . . . . 3 . . . . . . . . . . . . . 1 Scanalyzers 1 | . . . . . . . 1 . . . . . . . . . . . . Garrison Access . | . . . . . . . . . . . . . . . . . . . . Total Hacks 39 | . . . . . 10 . 5 . . . . 1 . . . 2 19 . 2 Successful 30 | . . . . . 5 . 3 . . . . . . . . 2 19 . 1 Failed 9 | . . . . . 5 . 2 . . . . 1 . . . . . . 1 Catastrophic 3 | . . . . . 1 . 1 . . . . . . . . . . . 1 Database Lockouts . | . . . . . . . . . . . . . . . . . . . . Manual 2 | . . . . . . . . . . . . . . . . . . . 2 Terminals . | . . . . . . . . . . . . . . . . . . . . Fabricators 1 | . . . . . . . . . . . . 1 . . . . . . . Repair Stations . | . . . . . . . . . . . . . . . . . . . . Recycling Units 9 | . . . . . 7 . . . . . . . . . . . . . 2 Scanalyzers 5 | . . . . . . . 5 . . . . . . . . . . . . Garrison Access . | . . . . . . . . . . . . . . . . . . . . Terminal Hacks 24 | . . . . . 3 . . . . . . . . . . 2 19 . . Record 21 | . . . . . 3 . . . . . . . . . . 1 17 . . Open Door 3 | . . . . . . . . . . . . . . . . 1 2 . . Fabricator Hacks . | . . . . . . . . . . . . . . . . . . . . Repair Station Hacks . | . . . . . . . . . . . . . . . . . . . . Recycling Unit Hacks 2 | . . . . . 2 . . . . . . . . . . . . . . Retrieve Components 2 | . . . . . 2 . . . . . . . . . . . . . . Scanalyzer 3 | . . . . . . . 3 . . . . . . . . . . . . Insert Component 2 | . . . . . . . 2 . . . . . . . . . . . . Analyze 1 | . . . . . . . 1 . . . . . . . . . . . . Garrison Access Hacks . | . . . . . . . . . . . . . . . . . . . . Unauthorized Hacks 1 | . . . . . . . . . . . . . . . . . . . 1 Terminals . | . . . . . . . . . . . . . . . . . . . . Fabricators . | . . . . . . . . . . . . . . . . . . . . Repair Stations . | . . . . . . . . . . . . . . . . . . . . Recycling Units 1 | . . . . . . . . . . . . . . . . . . . 1 Fedlink 1 | . . . . . . . . . . . . . . . . . . . 1 Scanalyzers . | . . . . . . . . . . . . . . . . . . . . Garrison Access . | . . . . . . . . . . . . . . . . . . . . Data Cores Recovered 3 | . 1 . . 1 . . . . . . . 1 . . . . . . . Used . | . . . . . . . . . . . . . . . . . . . . Hacking Detections 4 | . . . . . 2 . 1 . . . . 1 . . . . . . . Full Trace Events 1 | . . . . . 1 . . . . . . . . . . . . . . Feedback Events . | . . . . . . . . . . . . . . . . . . . . Feedback Blocked . | . . . . . . . . . . . . . . . . . . . . Robot Schematics Acquired 3 | . . . . . . . . . . 3 . . . . . . . . . Robots Built . | . . . . . . . . . . . . . . . . . . . . Authchips . | . . . . . . . . . . . . . . . . . . . . Time . | . . . . . . . . . . . . . . . . . . . . Total Robot Build Rating . | . . . . . . . . . . . . . . . . . . . . Part Schematics Acquired 14 | . . . . . . . . . . 14 . . . . . . . . . Parts Built . | . . . . . . . . . . . . . . . . . . . . Authchips . | . . . . . . . . . . . . . . . . . . . . Time . | . . . . . . . . . . . . . . . . . . . . Total Part Build Rating . | . . . . . . . . . . . . . . . . . . . . Part Studies Acquired . | . . . . . . . . . . . . . . . . . . . . Parts Repaired . | . . . . . . . . . . . . . . . . . . . . Time . | . . . . . . . . . . . . . . . . . . . . Parts Recycled . | . . . . . . . . . . . . . . . . . . . . Recycled Matter . | . . . . . . . . . . . . . . . . . . . . Retrieved Matter . | . . . . . . . . . . . . . . . . . . . . Retrieved Components 5 | . . . . . 5 . . . . . . . . . . . . . . Parts Scanalyzed 1 | . . . . . . . 1 . . . . . . . . . . . . Part Schematics Acquired . | . . . . . . . . . . . . . . . . . . . . Parts Damaged . | . . . . . . . . . . . . . . . . . . . . Bothacking | -11 -10 -10 -9 -9 -9 -9 -6 -6 -6 -6 -5 -5 -5 -5 -5 -5 -5 -4 -4 ------------ Run | Yrd Mat Min Mat Sto Rec Scr Fac Low Low Zio Pro Fac Was Fac Upp Upp War Pro Fac Used RIF Installer . | . . . . . . . . . . . . . . . . . . . . Robots Hacked . | . . . . . . . . . . . . . . . . . . . . Non-combat . | . . . . . . . . . . . . . . . . . . . . Combat . | . . . . . . . . . . . . . . . . . . . . Robot Hacks Applied . | . . . . . . . . . . . . . . . . . . . . Relay Couplers Released . | . . . . . . . . . . . . . . . . . . . . Fabnet Peak Effective % . | . . . . . . . . . . . . . . . . . . . . Robots Rewired 5 | . . . . . . . . . . . . . . . . . 5 . . Allies Hacked . | . . . . . . . . . . . . . . . . . . . . Hacks Repelled . | . . . . . . . . . . . . . . . . . . . . Allies | -11 -10 -10 -9 -9 -9 -9 -6 -6 -6 -6 -5 -5 -5 -5 -5 -5 -5 -4 -4 -------- Run | Yrd Mat Min Mat Sto Rec Scr Fac Low Low Zio Pro Fac Was Fac Upp Upp War Pro Fac Total Allies 40 | . . . . 10 . . . . . 7 . . 18 . . . 5 . . Largest Group 18 | . . . . 10 8 8 8 8 6 13 13 . 18 17 8 6 11 4 4 Highest-Rated Group 638 | . . . . 88 72 72 72 72 55 216 216 . 638 613 313 231 510 181 181 Highest-Rated Ally 68 | . . . . 16 16 16 16 16 16 51 51 . 50 50 46 46 68 64 64 Initial UFD Resources 27 | . . . . . . . 22 22 22 22 25 25 25 25 25 25 25 27 27 Total Orders 6 | . . . . . . . . 2 2 . . . . . . . 2 . . STAY 3 | . . . . . . . . 1 1 . . . . . . . 1 . . FOLLOW 3 | . . . . . . . . 1 1 . . . . . . . 1 . . Ally Attacks 461 | . . . . 37 7 . 4 28 . . 86 . 73 80 64 . 58 20 4 Total Damage 10371 | . . . . 371 36 . 35 170 . . 1152 . 2693 1574 1798 . 1714 641 187 Kills 55 | . . . . 3 1 . . 1 . . 10 . 5 12 8 . 7 6 2 Allies Corrupted . | . . . . . . . . . . . . . . . . . . . . Allies Melted 2 | . . . . . . . . . . . . . . . . . . 2 . Intel | -11 -10 -10 -9 -9 -9 -9 -6 -6 -6 -6 -5 -5 -5 -5 -5 -5 -5 -4 -4 ------- Run | Yrd Mat Min Mat Sto Rec Scr Fac Low Low Zio Pro Fac Was Fac Upp Upp War Pro Fac Active Infowar (turns) 8745 | . . . . . . 1338 127 706 395 841 925 678 479 481 465 439 1066 335 470 Optics 6530 | . . . . . . . 67 706 395 841 913 678 479 481 465 439 1066 . . Sensors 1780 | . . . . . . . 91 706 395 551 37 . . . . . . . . Terrain 6898 | . . . . . . 1338 36 651 395 841 888 208 463 481 344 429 21 335 468 Cloaking 10 | . . . . . . . . . . . . . . . 5 . 2 . 3 Robot Analysis Total . | . . . . . . . . . . . . . . . . . . . . Derelict Logs Recovered 5 | . . . . . . . . 2 . 1 . . . . 1 1 . . . Drone Launches . | . . . . . . . . . . . . . . . . . . . . Drone Recoveries . | . . . . . . . . . . . . . . . . . . . . Exploration | -11 -10 -10 -9 -9 -9 -9 -6 -6 -6 -6 -5 -5 -5 -5 -5 -5 -5 -4 -4 ------------- Run | Yrd Mat Min Mat Sto Rec Scr Fac Low Low Zio Pro Fac Was Fac Upp Upp War Pro Fac Turns Passed 13371 | 37 192 46 1030 1757 666 1805 148 706 395 841 1006 678 479 481 465 439 1139 404 657 Spaces Moved 9805 | 28 86 39 385 910 470 935 155 375 314 998 454 869 571 372 402 349 1067 244 782 Core 238 | 9 . . 75 . . . . . . . . 43 . . . . . . 111 Treads 851 | . . . 181 670 . . . . . . . . . . . . . . . Legs 1955 | 19 86 39 129 240 470 935 37 . . . . . . . . . . . . Wheels . | . . . . . . . . . . . . . . . . . . . . Hover 2374 | . . . . . . . 118 375 314 998 454 115 . . . . . . . Flight 4387 | . . . . . . . . . . . . 711 571 372 402 349 1067 244 671 Fastest Speed 22 | 50 120 120 120 120 120 120 56 56 56 56 56 32 30 22 28 28 27 32 28 Average Speed 67 | 97 120 120 152 149 120 120 71 56 56 56 56 39 31 26 28 28 28 32 37 Slowest Speed 300 | 120 120 120 300 160 120 120 150 56 56 56 56 200 32 30 28 28 117 32 200 Overloaded Moves . | . . . . . . . . . . . . . . . . . . . . Propulsion Burnouts . | . . . . . . . . . . . . . . . . . . . . Robots Hopped 11 | . . . . . . . . . . . . 1 2 . . . 4 . 4 Potential Cave-ins 4 | . . . . . . . . . . . . . . . . . . . 4 Cave-ins Triggered . | . . . . . . . . . . . . . . . . . . . . Exploration Rate (%) 49 | 3 25 9 41 84 75 72 4 69 41 88 66 27 96 14 60 58 92 42 19 Regions Visited 19 Branch Regions 12 Pre-discovered Areas 1 | . . 1 . . . . . . . . . . . . . . . . . Known Exits Taken 5 | . . . . . . . . . . . . . . 1 1 1 1 1 . Unknown Exits Taken 12 | 1 1 1 1 1 1 1 1 1 1 1 1 . . . . . . . . Scrap Searched 23 | . . . . . . 9 . 1 2 3 3 . . . 3 1 . 1 . Spaces Dug 24 | . . . . . . . . . . . . 6 . 2 6 2 . 2 6 Terrain Destroyed 146 | . . . . 24 . . . . . . . 8 1 16 25 3 3 19 47 Melee 1 | . . . . . . . . . . . . . . 1 . . . . . Projectile 119 | . . . . . . . . . . . . 6 1 15 25 3 3 19 47 AOE 24 | . . . . 24 . . . . . . . . . . . . . . . Terrain Rammed . | . . . . . . . . . . . . . . . . . . . . Walls Destroyed . | . . . . . . . . . . . . . . . . . . . . Machines Disabled . | . . . . . . . . . . . . . . . . . . . . Actions | -11 -10 -10 -9 -9 -9 -9 -6 -6 -6 -6 -5 -5 -5 -5 -5 -5 -5 -4 -4 --------- Run | Yrd Mat Min Mat Sto Rec Scr Fac Low Low Zio Pro Fac Was Fac Upp Upp War Pro Fac Total 15704 | 37 123 38 692 1111 570 1618 193 862 533 1279 1151 1117 823 712 714 685 1867 531 1048 Wait 5025 | . 10 . 184 30 94 672 21 476 216 274 668 152 202 304 277 324 675 268 178 Move 9767 | 27 85 38 384 909 469 934 154 374 313 997 453 867 567 371 401 348 1059 243 774 Hop 9 | . . . . . . . . . . . . 1 1 . . . 3 . 4 Pick Up 58 | 5 1 . 15 7 2 4 2 2 1 3 . 5 2 . 5 1 1 . 2 Fast Attach 70 | . . . 2 18 . 2 5 . . . 2 9 2 11 1 4 11 . 3 Attach 44 | 5 1 . 12 6 1 . 2 3 1 . . 4 3 . . . . . 6 Detach 10 | . . . 2 1 . . 1 1 . . . . 1 . . . . . 4 Swap 46 | . . . 9 7 1 2 . . 1 3 2 3 1 1 2 1 9 2 2 Drop 82 | . . . 2 24 1 4 8 1 1 2 . 5 1 4 6 5 16 . 2 Fire 442 | . 26 . 82 60 2 . . 5 . . 26 68 43 16 22 2 9 18 63 Melee 5 | . . . . . . . . . . . . . . 5 . . . . . Ram 11 | . . . . . . . . . . . . 1 . . . . . . 10 Kick . | . . . . . . . . . . . . . . . . . . . . Crush . | . . . . . . . . . . . . . . . . . . . . Escape Stasis . | . . . . . . . . . . . . . . . . . . . . Rewire 77 | . . . . . . . . . . . . 2 . . . . 75 . . Trap . | . . . . . . . . . . . . . . . . . . . . Miscellaneous 58 | . . . . 49 . . . . . . . . . . . . 9 . . Route ------- -11/Scrapyard -10/Materials -10/Mines -9/Materials (discovered 2 exits: [*Mat] / *Sto) -9/Storage (discovered 2 exits: [*Mat] / *Rec) -9/Recycling (discovered 2 exits: [*Fac] / [*Scr]) -9/Scraptown -6/Factory -6/Lower Caves -6/Lower Caves -6/Zion -5/Proximity Caves -5/Factory -5/Waste -5/Factory -5/Upper Caves -5/Upper Caves -5/Warlord -4/Proximity Caves -4/Factory (discovered 3 exits: [*Res] / *Upp / [Arm]) History --------- Turn | Location | Event 3 | -11/Scrapyard | Discovered new exit (range 16) 38 | -11/Scrapyard | Entered Materials 212 | -10/Materials | Discovered new exit (range 16) 230 | -10/Materials | Entered Mines 231 | -10/Mines | Learned location of Storage (-9) 259 | -10/Mines | Discovered new exit (range 15) 276 | -10/Mines | Entered Materials 276 | -9/Materials | Evolved 2 slots: Propulsion x2 325 | -9/Materials | Build established: Mutant 785 | -9/Materials | Core integrity fell below 50% 901 | -9/Materials | Discovered new exit (range 5) 1258 | -9/Materials | Discovered new exit (range 15) 1306 | -9/Materials | Entered Storage 1434 | -9/Storage | Build established: Scavenger-Mutant 1808 | -9/Storage | Found Prototype Processor 1808 | -9/Storage | Identified Exp. Targeting Computer 2129 | -9/Storage | Found Prototype Launcher 2129 | -9/Storage | Identified Gui. EMP Blaster 2283 | -9/Storage | Build established: Mutant 2372 | -9/Storage | Assisted by bots powering up and referring to "LRC-V3" 2680 | -9/Storage | Discovered new exit (range 16) 2691 | -9/Storage | Build established: Commander-Mutant 3057 | -9/Storage | Discovered new exit (range 3) 3063 | -9/Storage | Entered Recycling 3063 | -9/Recycling | Accompanied by 8 allies 3613 | -9/Recycling | Discovered new exit (range 13) 3676 | -9/Recycling | Scanned before Scraplab entrance 3694 | -9/Recycling | Entered Scraplab 3703 | -9/Recycling | Discovered new exit (range 3) 3729 | -9/Recycling | Entered Scraptown 3729 | -9/Scraptown | Accompanied by 8 allies 3729 | -9/Scraptown | System corruption cleaned by C-Scrubber 3905 | -9/Scraptown | Visited UFD Registry 3905 | -9/Scraptown | Registered with UFD as "Chainbox" 3935 | -9/Scraptown | Visited LU-1G1's Boring Crew 3954 | -9/Scraptown | Visited DA-N13 Charitable Foundation 3965 | -9/Scraptown | Found DCF Scrap (30 items) 3988 | -9/Scraptown | Visited Curators Association 4028 | -9/Scraptown | Visited Abandonware Association 4166 | -9/Scraptown | Visited Infowarlord's Domain 4177 | -9/Scraptown | Found Exp. Terrain Scanner 4253 | -9/Scraptown | Visited Supply Room 4272 | -9/Scraptown | Visited Scrapoid Pod Storage 4916 | -9/Scraptown | Heard Great Nut preacher, LISTEN AND RECITE! 4957 | -9/Scraptown | Visited Bundlers 5420 | -9/Scraptown | Met Optimus 5420 | -9/Scraptown | Accepted into 0bPrime 5491 | -9/Scraptown | Discovered new exit (range 5) 5534 | -9/Scraptown | Entered Factory 5534 | -6/Factory | Accompanied by 8 allies 5534 | -6/Factory | Evolved 6 slots: Power x1, Propulsion x2, Utility x2, Weapon x1 5663 | -6/Factory | Discovered new exit (range 3) 5682 | -6/Factory | Entered Lower Caves 5682 | -6/Lower Caves | Accompanied by 8 allies 5684 | -6/Lower Caves | Attached CPS modules to VP-NU3(f). 6043 | -6/Lower Caves | Build established: Commander-Scout 6185 | -6/Lower Caves | Learned Factory garrison access intel 6278 | -6/Lower Caves | Discovered new exit (range 25) 6327 | -6/Lower Caves | Attracted the attention of an 0b10 checkpoint 6351 | -6/Lower Caves | Encountered a Warlord checkpoint 6379 | -6/Lower Caves | Learned Factory garrison access intel 6388 | -6/Lower Caves | Entered another Lower Caves area 6388 | -6/Lower Caves | Accompanied by 6 allies 6636 | -6/Lower Caves | Encountered a Warlord checkpoint 6731 | -6/Lower Caves | Discovered new exit (range 21) 6732 | -6/Lower Caves | Found DCF Scrap (14 items) 6783 | -6/Lower Caves | Entered Zion 6783 | -6/Zion | Accompanied by 6 allies 6794 | -6/Zion | Received a hallucinogenic algorithm 6804 | -6/Zion | Discovered new exit (range 14) 6913 | -6/Zion | Learned Factory stockpile data 6962 | -6/Zion | Acquired unknown access codes intercepted by a Zionite 6984 | -6/Zion | Visited the Megawrench Repair Shop 7092 | -6/Zion | Gained Derelict followers 7118 | -6/Zion | Gained Derelict followers 7179 | -6/Zion | Turned away by Imprinter 7278 | -6/Zion | Megawrench repaired 5 parts 7624 | -6/Zion | Entered Proximity Caves 7624 | -5/Proximity Caves | Accompanied by 13 allies 7626 | -5/Proximity Caves | Attracted the attention of an 0b10 checkpoint 7838 | -5/Proximity Caves | Spotted B-75 Beast 7949 | -5/Proximity Caves | Allies destroyed B-75 Beast 8117 | -5/Proximity Caves | Lost 3 allies 8362 | -5/Proximity Caves | Build established: Derelict-Scout 8459 | -5/Proximity Caves | Lost 3 allies 8494 | -5/Proximity Caves | Lost 3 parts (1p1u1w) 8609 | -5/Proximity Caves | Discovered new exit (range 9) 8630 | -5/Proximity Caves | Entered Factory 8630 | -5/Factory | Evolved 2 slots: Utility x2 8632 | -5/Factory | Loaded intel: 4 garrison access locations 8650 | -5/Factory | Lost 3 allies 8783 | -5/Factory | Garrison activated, responded to threat 8799 | -5/Factory | Noticed a derelict Sapper rigging charges 8800 | -5/Factory | Spotted B-75 Beast 8943 | -5/Factory | Lost 8 parts (1p3n1u3w) 9060 | -5/Factory | Discovered new exit (range 18) 9079 | -5/Factory | Identified exit to Factory 9308 | -5/Factory | Manually triggered Chute Trap 9308 | -5/Factory | Sucked down chute 9308 | -5/Factory | Entered Waste 9320 | -5/Waste | Spotted C-40 Crusher 9352 | -5/Waste | Spotted C-40 Crusher 9401 | -5/Waste | Spotted C-40 Crusher 9408 | -5/Waste | Spotted C-40 Crusher 9420 | -5/Waste | Spotted C-40 Crusher 9423 | -5/Waste | Spotted C-40 Crusher 9519 | -5/Waste | Destroyed C-40 Crusher 9602 | -5/Waste | Discovered new exit (range 20) 9606 | -5/Waste | Warlord forces began an assault 9632 | -5/Waste | Allies destroyed C-40 Crusher 9634 | -5/Waste | Allies destroyed C-40 Crusher 9636 | -5/Waste | Allies destroyed C-40 Crusher 9639 | -5/Waste | Destroyed C-40 Crusher 9641 | -5/Waste | Allies destroyed C-40 Crusher 9711 | -5/Waste | Identified exit to Factory 9787 | -5/Waste | Entered Factory 9787 | -5/Factory | Accompanied by 17 allies 9788 | -5/Factory | Loaded intel: 4 garrison access locations 9825 | -5/Factory | Build established: Scout 10108 | -5/Factory | Discovered new exit (range 16) 10144 | -5/Factory | Build established: Scavenger-Scout 10162 | -5/Factory | P-70 Sage assimilated allied 78-HKT(s) 10169 | -5/Factory | P-70 Sage assimilated allied 4P-M9R(b) 10200 | -5/Factory | Lost 3 allies 10246 | -5/Factory | Identified exit to Upper Caves 10268 | -5/Factory | Entered Upper Caves 10268 | -5/Upper Caves | Accompanied by 8 allies 10339 | -5/Upper Caves | Learned Factory stockpile data 10458 | -5/Upper Caves | Attracted the attention of an 0b10 checkpoint 10581 | -5/Upper Caves | Spotted B-75 Beast 10598 | -5/Upper Caves | Destroyed B-75 Beast 10601 | -5/Upper Caves | Discovered new exit (range 29) 10705 | -5/Upper Caves | Identified exit to Upper Caves 10733 | -5/Upper Caves | Entered another Upper Caves area 10733 | -5/Upper Caves | Accompanied by 6 allies 10847 | -5/Upper Caves | Found Alien Artifact 10990 | -5/Upper Caves | Learned 4 Factory zone layouts 11036 | -5/Upper Caves | Discovered new exit (range 16) 11042 | -5/Upper Caves | Identified exit to Warlord 11172 | -5/Upper Caves | Entered Warlord 11172 | -5/Warlord | Accompanied by 6 allies 11183 | -5/Warlord | System corruption cleaned by Quarantine Array 11329 | -5/Warlord | Found Prototype Reactor 11329 | -5/Warlord | Identified Vortex Chain Reactor 11335 | -5/Warlord | Identified Dimensional Node Initializer 11335 | -5/Warlord | Initialized slip node 11337 | -5/Warlord | Found Prototype Processor 11337 | -5/Warlord | Identified Exp. Core Analyzer 11477 | -5/Warlord | Received a Watcher feed algorithm from an ecstatic Tinkerer 11491 | -5/Warlord | Visited the Vortex Lab 11503 | -5/Warlord | Warlord's base attacked by MAIN.C 11562 | -5/Warlord | Rebuked by Warlord 11738 | -5/Warlord | Build established: Commander-Sprinter 11853 | -5/Warlord | Warlord forces counterattacked 12174 | -5/Warlord | Spotted Striker 12178 | -5/Warlord | Warlord base infiltrated, sounded retreat 12208 | -5/Warlord | Spotted Executioner 12212 | -5/Warlord | Destroyed Executioner 12243 | -5/Warlord | Discovered new exit (range 15) 12303 | -5/Warlord | Spotted Striker 12303 | -5/Warlord | Spotted Striker 12303 | -5/Warlord | Identified exit to Proximity Caves 12311 | -5/Warlord | Entered Proximity Caves 12311 | -4/Proximity Caves | Accompanied by 4 allies 12342 | -4/Proximity Caves | Lost 3 allies 12352 | -4/Proximity Caves | Core integrity fell below 50% 12553 | -4/Proximity Caves | Build established: Scavenger-Sprinter 12616 | -4/Proximity Caves | Discovered exit to Factory (range 29) 12715 | -4/Proximity Caves | Entered Factory 12715 | -4/Factory | Accompanied by 4 allies 12715 | -4/Factory | Evolved 2 slots: Utility x2 12840 | -4/Factory | Discovered new exit (range 15) 12878 | -4/Factory | Discovered new exit (range 22) 12902 | -4/Factory | Identified exit to Upper Caves 13041 | -4/Factory | Discovered new exit (range 30) 13055 | -4/Factory | Found Exp. Terrain Scan Processor 13166 | -4/Factory | Loaded intel: 8 recycling unit locations 13215 | -4/Factory | Search patrols dispatched 13304 | -4/Factory | Core integrity fell below 50% 13334 | -4/Factory | Core integrity fell below 20% 13344 | -4/Factory | Lost 10 parts (1p4n3u2w) 13372 | -4/Factory | Destroyed self via exploding Fusion Modulator Last Messages --------------- R-10 Processor knocked back. Slammed into R-10 Processor. R-10 Processor knocked back. Slammed into R-10 Processor. R-10 Processor knocked back. Slug penetrates Wall. Slammed into S-27 Virus. Exp. Core Analyzer broken. Destabilizing: Short circuit. Slammed into S-27 Virus. Slammed into P-70 Sage. Slammed into S-27 Virus. System corrupted: Substantial component data lost. Penetrated by Slug. Adv. Reaction Control System destroyed. Slammed into T-07 Excavator. System corrupted: Energy discharge (-27). Acquired Hardcell Cannon. Fusion Modulator explodes. Map ----- +----------------------------------------------------+ | ?? ?? ? ?? # | | #####+#### ? ??? ? ########## | | ? ?# ????? ? ???? | | ? # ?#??#?#?############# | | ??+ ############# ??? ??? ###?######? | | ?# ########?###? ?? ?? ???####?#??## | | ?# #?#?#######?? ? ? ???? ???##?#?#??# | | #######?## ##?????#??#?# ????? ? ?##?###??### | | #######?####+#####?######### ? ??? ?? ?###??#????# | | #######? ? ?? ??# # ??? ???? ?##?#????### | | ######? ? ? ?=????# "" # # ? ???? ?#####?#?### | | #######? ??? ????# ""S # # ?????? ?##??###### | | ####### ??? ?? ?# "" * # #???#?????##?#??#?#?? | | #######? ?? ?? ???# # ########????#???###?? | | ######? ????????# """ = # #???#?##?###### | | #######??? ??? ????# """ # #????????## | | #####?#?????"?"????# """ # #????#?#?## | | ####### ?????"????# + ##????????# | | ####### ""?"?????# """ # T#????????# | | ####### """""????# """sss# #????????# | | ####### ? ?# """ # ##????????????? | | #################??# # #?????????????? | | ### ######## # #?????????????? | | ### ######## # #?????????????? | | ### # ## # #?????????????? | | ### # ## @ # #?????????????? | | ##########"## ########## #?????????????? | | ## ######???# #?????????????? | | ########## ## #######??# #?????????????? | | ########## ## #######??# #?????????????? | | ## ## ########?# #?????????????? | | """""" # ##/############# #?????????????? | | """""" + #?????????????? | | """""" # ##"############# #?????????????? | | """""" ## ## ###### #?????????????? | | ## ## ###### #?????????????? | | ########## + ###### +?????????????? | | ############# ###### #?????????????? | | ############################ #?????????????? | | ############### # #????????????!? | | ############### = # #?????????????? | | ############### """"" # #?????????????? | | ############### """"" # #?????????????? | | ############### """ # #?????????????? | | ########"###### + +?????????????? | | ! ### # #?????????????? | | * # "# # ????????????????? | | % #### "" # ??????????????????? | | % #### "Y # ???????????????????? | | #### "" # ???????????????????? | +----------------------------------------------------+ Best States ------------- Heat Dissipation 74 Energy Generation 55 Energy Capacity 700 Matter Stores 300 Matter Capacity 300 Sight Range 22 Robot Scan Range 16 Terrain Scan Range 30 Terrain Scan Density 1135 Cloak Strength 4 Additional Mass Support 9 Armor Coverage 150 Evasion (%) 76 Targeting Accuracy 12 Core Analysis 11 Recoil Reduction 3 Salvage Targeting 2 Offensive Hacking 10 Authchip Count 2 Item Schematics ----------------- Imp. Reaction Control System | -6/Zion | Archive Imp. Transmission Jammer | -6/Zion | Archive Flexi-carbon Leg | -6/Zion | Archive Lrn. Tractor Beam | -6/Zion | Archive Force Field | -6/Zion | Archive Mni. Drone Bay | -6/Zion | Archive Adv. Terrain Scanner | -6/Zion | Archive Hardcell Cannon | -6/Zion | Archive Hvy. Gauss Cannon | -6/Zion | Archive Fission Core | -6/Zion | Archive Lrn. Proton Cannon | -6/Zion | Archive Power Amplifier | -6/Zion | Archive Adv. System Shield | -6/Zion | Archive IFF Parser | -6/Zion | Archive Robot Schematics ------------------ E-15 Imp | -6/Zion | Archive A-15 Conveyor | -6/Zion | Archive A-02 Transporter | -6/Zion | Archive Fabricated ------------ Nothing Repaired ---------- Nothing Studied --------- None Alien Tech Used ----------------- Dimensional Node Initializer Achievements -------------- None Challenges ------------ None Game ------ Seed MyomerAlertBrace Manual? 0 Play Time 01:47:23 Cumulative 267.8 hours Start 2026.04.13 @ 20:25:13 End 2026.04.18 @ 07:05:35 Sessions 2 Manual Loads 0 Difficulty Rogue Special Mode None Game No. 705 Rogue 703 Adventurer 2 Explorer 0 Win Type - Total 0 Types 0/0/0/0/0/0/0/0/0/0 Lore% 67 Gallery% 63 Achievement% 44 Wizard Run 0 Options --------- Layout 2 ASCII 0 Keyboard 0 Movement Mouse Keybinds 0 Fullscreen 1 Font 24/Smallcaps Map View 50x44 Zoom Use 0% Tactical HUD 0 Map Filters NONE Filters NONE Steam 1 RUN: 28496308-f750-400e-821b-4fa256b3c088